[Event "*** Titled Tuesday 3|2 Blitz (Late)"]
[Site "Chess.com"]
[Date "2016.11.01"]
[Round "5"]
[White "KyronGriffith"]
[Black "MFBerna"]
[Result "1-0"]
[WhiteElo "2314"]
[BlackElo "2176"]
[TimeControl "180+2"]
[EndTime "18:06:45 PDT"]
[Termination "KyronGriffith won on time"]

1. e4 {[%clk 0:03:02]} 1... e5 {[%clk 0:03:01]} 2. Nf3 {[%clk 0:03:03]} 2... Nc6
{[%clk 0:03:02.4]} 3. Bb5 {[%clk 0:03:03.6]} 3... a6 {[%clk 0:03:03.6]} 4. Ba4
{[%clk 0:03:04.4]} 4... Nf6 {[%clk 0:03:03.8]} 5. O-O {[%clk 0:03:04.4]} 5...
Be7 {[%clk 0:03:04.6]} 6. d3 {[%clk 0:03:04.4]} 6... b5 {[%clk 0:03:05.8]} 7.
Bb3 {[%clk 0:03:05.6]} 7... O-O {[%clk 0:03:07.3]} 8. a3 {[%clk 0:03:07.1]} 8...
d6 {[%clk 0:03:06.9]} 9. Nc3 {[%clk 0:03:07.9]} 9... Na5 {[%clk 0:03:00]} 10.
Ba2 {[%clk 0:03:06.8]} 10... c5 {[%clk 0:03:01.4]} 11. b4 {[%clk 0:02:56.5]}
11... Nc6 {[%clk 0:03:01.1]} 12. Nd5 {[%clk 0:02:56.1]} 12... Be6 {[%clk
0:02:53.3]} 13. Nxf6+ {[%clk 0:02:18.4]} 13... Bxf6 {[%clk 0:02:53.6]} 14. Bxe6
{[%clk 0:02:19.3]} 14... fxe6 {[%clk 0:02:55.5]} 15. c3 {[%clk 0:02:17.4]} 15...
Qb6 {[%clk 0:02:29.4]} 16. Be3 {[%clk 0:02:17.1]} 16... Rac8 {[%clk 0:02:12.7]}
17. Qb3 {[%clk 0:02:15.9]} 17... Rfe8 {[%clk 0:02:11.8]} 18. a4 {[%clk
0:02:13.1]} 18... Na7 {[%clk 0:01:47.6]} 19. Rfb1 {[%clk 0:02:00.2]} 19... Qc6
{[%clk 0:01:39]} 20. bxc5 {[%clk 0:01:54.7]} 20... dxc5 {[%clk 0:01:38.5]} 21.
axb5 {[%clk 0:01:53.7]} 21... Nxb5 {[%clk 0:01:40.4]} 22. Nd2 {[%clk 0:01:41.5]}
22... Nd4 {[%clk 0:00:55.4]} 23. cxd4 {[%clk 0:01:30.9]} 23... cxd4 {[%clk
0:00:57.3]} 24. Bxd4 {[%clk 0:01:31.6]} 24... exd4 {[%clk 0:00:57.9]} 25. Nc4
{[%clk 0:01:32.6]} 25... Kh8 {[%clk 0:00:41.5]} 26. Qb6 {[%clk 0:01:28.1]} 26...
Qxb6 {[%clk 0:00:36.4]} 27. Rxb6 {[%clk 0:01:30]} 27... Kg8 {[%clk 0:00:23.8]}
28. Raxa6 {[%clk 0:01:29.6]} 28... Rb8 {[%clk 0:00:23.1]} 29. g3 {[%clk
0:01:25.6]} 29... Rxb6 {[%clk 0:00:24]} 30. Rxb6 {[%clk 0:01:27.5]} 30... e5
{[%clk 0:00:18.7]} 31. Rb5 {[%clk 0:01:23.4]} 31... Re7 {[%clk 0:00:17.6]} 32.
h4 {[%clk 0:01:23.1]} 32... Kf7 {[%clk 0:00:18.1]} 33. Kg2 {[%clk 0:01:22]}
33... Ra7 {[%clk 0:00:17.1]} 34. Rb7+ {[%clk 0:01:06]} 34... Rxb7 {[%clk
0:00:17.6]} 35. Nd6+ {[%clk 0:01:07.5]} 35... Ke6 {[%clk 0:00:18.3]} 36. Nxb7
{[%clk 0:01:09.4]} 36... Be7 {[%clk 0:00:15.3]} 37. Na5 {[%clk 0:01:10.3]} 37...
g5 {[%clk 0:00:12]} 38. h5 {[%clk 0:01:04.2]} 38... g4 {[%clk 0:00:13.3]} 39. f3
{[%clk 0:01:00.6]} 39... gxf3+ {[%clk 0:00:12.6]} 40. Kxf3 {[%clk 0:01:02.5]}
40... Bd8 {[%clk 0:00:08.2]} 41. Nc4 {[%clk 0:01:00.3]} 41... Bc7 {[%clk
0:00:09.6]} 42. Kg4 {[%clk 0:01:01]} 42... Kf6 {[%clk 0:00:10.1]} 43. Nd2 {[%clk
0:00:54.5]} 43... Bd8 {[%clk 0:00:08.8]} 44. Nf3 {[%clk 0:00:55.3]} 44... Be7
{[%clk 0:00:04.4]} 45. Ng5 {[%clk 0:00:54.8]} 45... h6 {[%clk 0:00:04.9]} 46.
Nf3 {[%clk 0:00:55.9]} 46... Ke6 {[%clk 0:00:05.3]} 47. Nh4 {[%clk 0:00:41.9]}
47... Bg5 {[%clk 0:00:04.2]} 48. Nf5 {[%clk 0:00:36]} 48... Kf6 {[%clk
0:00:05.2]} 49. Kf3 {[%clk 0:00:35.8]} 49... Bd2 {[%clk 0:00:06.2]} 50. Ke2
{[%clk 0:00:34.1]} 50... Bc1 {[%clk 0:00:06.1]} 51. Kd1 {[%clk 0:00:34.3]} 51...
Bg5 {[%clk 0:00:04.7]} 52. Kc2 {[%clk 0:00:35.4]} 52... Ke6 {[%clk 0:00:02.9]}
53. Kb3 {[%clk 0:00:36.6]} 53... Kf6 {[%clk 0:00:04.8]} 54. Kc4 {[%clk
0:00:37.6]} 54... Bd2 {[%clk 0:00:05.3]} 55. Kd5 {[%clk 0:00:38.2]} 55... Bc1
{[%clk 0:00:05.8]} 56. Nh4 {[%clk 0:00:29.4]} 56... Ba3 {[%clk 0:00:05.9]} 57.
Nf3 {[%clk 0:00:29.5]} 57... Bc1 {[%clk 0:00:03.1]} 58. Nxe5 {[%clk 0:00:30.3]}
58... Kg5 {[%clk 0:00:05]} 59. g4 {[%clk 0:00:29.3]} 59... Be3 {[%clk
0:00:05.3]} 60. Nf7+ {[%clk 0:00:17.1]} 60... Kxg4 {[%clk 0:00:05.9]} 61. e5
{[%clk 0:00:18.5]} 61... Kxh5 {[%clk 0:00:04.9]} 62. e6 {[%clk 0:00:19.7]} 62...
Kg6 {[%clk 0:00:06.8]} 63. Kd6 {[%clk 0:00:17.2]} 63... Bf4+ {[%clk 0:00:05.8]}
64. Kd7 {[%clk 0:00:18.1]} 64... h5 {[%clk 0:00:04.2]} 65. e7 {[%clk 0:00:18.7]}
1-0

[Event "*** Titled Tuesday 3|2 Blitz (Late)"]
[Site "Chess.com"]
[Date "2016.11.01"]
[Round "5"]
[White "popov_m"]
[Black "jcgs1030"]
[Result "1/2-1/2"]
[WhiteElo "2291"]
[BlackElo "2251"]
[TimeControl "180+2"]
[EndTime "18:07:50 PDT"]
[Termination "Game drawn by agreement"]

1. c4 {[%clk 0:03:01.9]} 1... Nf6 {[%clk 0:02:59.3]} 2. g3 {[%clk 0:03:03.2]}
2... g6 {[%clk 0:02:59.9]} 3. Bg2 {[%clk 0:03:04.7]} 3... Bg7 {[%clk 0:03:01.5]}
4. Nc3 {[%clk 0:03:06.4]} 4... O-O {[%clk 0:03:03]} 5. e4 {[%clk 0:03:08.1]}
5... c5 {[%clk 0:03:03]} 6. Nge2 {[%clk 0:03:09.5]} 6... Nc6 {[%clk 0:03:03.3]}
7. O-O {[%clk 0:03:11]} 7... d6 {[%clk 0:03:04.1]} 8. d3 {[%clk 0:03:12.7]} 8...
Bg4 {[%clk 0:03:03.7]} 9. f3 {[%clk 0:03:13]} 9... Bd7 {[%clk 0:03:05.1]} 10.
Be3 {[%clk 0:03:14.3]} 10... Ne8 {[%clk 0:03:04.5]} 11. d4 {[%clk 0:03:06.7]}
11... cxd4 {[%clk 0:03:04.3]} 12. Nxd4 {[%clk 0:03:07.4]} 12... Nc7 {[%clk
0:03:05.6]} 13. Rc1 {[%clk 0:02:58.8]} 13... Nxd4 {[%clk 0:03:03.6]} 14. Bxd4
{[%clk 0:02:59.2]} 14... Bxd4+ {[%clk 0:03:03.6]} 15. Qxd4 {[%clk 0:03:00.9]}
15... Ne6 {[%clk 0:03:05]} 16. Qe3 {[%clk 0:03:01.3]} 16... Qa5 {[%clk
0:03:06.1]} 17. f4 {[%clk 0:02:56.6]} 17... Qc5 {[%clk 0:03:04.2]} 18. Qxc5
{[%clk 0:02:56.4]} 18... Nxc5 {[%clk 0:02:56.4]} 19. Rfd1 {[%clk 0:02:55]} 19...
Bc6 {[%clk 0:02:56.5]} 20. b4 {[%clk 0:02:35.7]} 20... Na4 {[%clk 0:02:52.6]}
21. b5 {[%clk 0:02:33.3]} 21... Nxc3 {[%clk 0:02:53.2]} 22. Rxc3 {[%clk
0:02:35]} 22... Bd7 {[%clk 0:02:48.5]} 23. e5 {[%clk 0:02:34.4]} 23... Bg4
{[%clk 0:02:49.1]} 24. Re1 {[%clk 0:02:16.8]} 24... Rab8 {[%clk 0:02:33.9]} 25.
exd6 {[%clk 0:02:12.5]} 25... exd6 {[%clk 0:02:35.8]} 26. Re7 {[%clk 0:02:13.5]}
26... Rfe8 {[%clk 0:02:35.8]} 27. Rce3 {[%clk 0:02:07.7]} 27... Rxe7 {[%clk
0:02:31.7]} 28. Rxe7 {[%clk 0:02:08]} 28... Be6 {[%clk 0:02:33]} 29. Rxb7 {[%clk
0:01:29.7]} 29... Rxb7 {[%clk 0:02:32.1]} 30. Bxb7 {[%clk 0:01:31.3]} 30... Bxc4
{[%clk 0:02:33.4]} 31. a4 {[%clk 0:01:33]} 31... Kf8 {[%clk 0:02:31.1]} 32. Kf2
{[%clk 0:01:33.7]} 32... Ke7 {[%clk 0:01:57.3]} 33. Ke3 {[%clk 0:01:34.6]} 33...
Kd7 {[%clk 0:01:58.7]} 34. Kd4 {[%clk 0:01:35.6]} 34... Bb3 {[%clk 0:01:59.3]}
35. a5 {[%clk 0:01:34.3]} 35... Kc7 {[%clk 0:01:59.9]} 36. Bd5 {[%clk
0:01:10.7]} 36... Ba4 {[%clk 0:01:59.8]} 37. Bxf7 {[%clk 0:00:52.5]} 37... Bxb5
{[%clk 0:02:00.2]} 38. Bg8 {[%clk 0:00:54.1]} 38... h6 {[%clk 0:02:00.4]} 39.
Bf7 {[%clk 0:00:54.1]} 39... g5 {[%clk 0:02:00.5]} 40. f5 {[%clk 0:00:52]} 40...
Kd7 {[%clk 0:02:00.8]} 41. f6 {[%clk 0:00:51.7]} 41... Be2 {[%clk 0:01:32.9]}
42. Bd5 {[%clk 0:00:50]} 42... Bh5 {[%clk 0:01:31.3]} 43. Kc4 {[%clk 0:00:47.9]}
43... Be2+ {[%clk 0:01:29.4]} 44. Kb4 {[%clk 0:00:48.9]} 44... Bd3 {[%clk
0:01:28.9]} 45. Kc3 {[%clk 0:00:40.2]} 45... Bf5 {[%clk 0:01:26.7]} 46. Kc4
{[%clk 0:00:38.4]} 46... Bg6 {[%clk 0:01:23.2]} 47. g4 {[%clk 0:00:28.6]} 47...
Bc2 {[%clk 0:01:19.8]} 48. h3 {[%clk 0:00:27.3]} 48... Bd1 {[%clk 0:01:16.8]}
49. f7 {[%clk 0:00:27]} 49... Ke7 {[%clk 0:01:16.5]} 50. Kb5 {[%clk 0:00:28.6]}
50... Be2+ {[%clk 0:01:13.1]} 51. Kc6 {[%clk 0:00:29.7]} 51... Bf1 {[%clk
0:01:12.9]} 52. Kb7 {[%clk 0:00:26.2]} 52... Bxh3 {[%clk 0:00:55.6]} 53. Kxa7
{[%clk 0:00:25]} 53... Bxg4 {[%clk 0:00:56.3]} 54. Kb6 {[%clk 0:00:23.2]} 54...
Be2 {[%clk 0:00:56.7]} 55. Bc6 {[%clk 0:00:16.7]} 55... Kxf7 {[%clk 0:00:56.6]}
56. Bb5 {[%clk 0:00:17.8]} 56... Bxb5 {[%clk 0:00:40.1]} 57. Kxb5 {[%clk
0:00:19.2]} 57... g4 {[%clk 0:00:41.4]} 58. a6 {[%clk 0:00:20.9]} 58... g3
{[%clk 0:00:42.7]} 59. a7 {[%clk 0:00:22.8]} 59... g2 {[%clk 0:00:43.9]} 60.
a8=Q {[%clk 0:00:24.7]} 60... g1=Q {[%clk 0:00:44.9]} 61. Qd5+ {[%clk
0:00:25.9]} 61... Ke7 {[%clk 0:00:43.2]} 62. Qe4+ {[%clk 0:00:26.9]} 62... Kd8
{[%clk 0:00:43.1]} 63. Qa8+ {[%clk 0:00:25.3]} 63... Kd7 {[%clk 0:00:44.5]} 64.
Qc6+ {[%clk 0:00:24.9]} 64... Ke6 {[%clk 0:00:45.5]} 65. Qe4+ {[%clk 0:00:26.3]}
65... Kf6 {[%clk 0:00:46.9]} 66. Qf4+ {[%clk 0:00:27.4]} 66... Kg6 {[%clk
0:00:47.8]} 67. Qxd6+ {[%clk 0:00:27.8]} 67... Kh5 {[%clk 0:00:49.3]} 68. Kc4
{[%clk 0:00:23.3]} 68... Qc1+ {[%clk 0:00:48.9]} 69. Kb3 {[%clk 0:00:22]} 69...
Qb1+ {[%clk 0:00:49.3]} 70. Kc3 {[%clk 0:00:22.6]} 70... Qa1+ {[%clk 0:00:49.6]}
71. Kc2 {[%clk 0:00:21.1]} 71... Qa4+ {[%clk 0:00:48]} 72. Kd2 {[%clk
0:00:19.7]} 72... Qa2+ {[%clk 0:00:49.2]} 73. Ke3 {[%clk 0:00:17.7]} 73... Qb3+
{[%clk 0:00:49.8]} 74. Kf2 {[%clk 0:00:17.2]} 74... Qc2+ {[%clk 0:00:50.1]} 75.
Kg3 {[%clk 0:00:17.6]} 75... Qc3+ {[%clk 0:00:47]} 76. Kh2 {[%clk 0:00:17.7]}
76... Qc2+ {[%clk 0:00:45.9]} 77. Kh3 {[%clk 0:00:18.9]} 77... Qf5+ {[%clk
0:00:45.9]} 78. Kh2 {[%clk 0:00:20.3]} 78... Qf2+ {[%clk 0:00:46]} 79. Kh3
{[%clk 0:00:18.8]} 79... Qf3+ {[%clk 0:00:46.2]} 80. Kh2 {[%clk 0:00:20]} 80...
Qe2+ {[%clk 0:00:41.3]} 81. Kh3 {[%clk 0:00:18]} 81... Qf1+ {[%clk 0:00:42.1]}
82. Kh2 {[%clk 0:00:19.1]} 82... Kg5 {[%clk 0:00:40.3]} 83. Qg3+ {[%clk
0:00:18.1]} 83... Kf6 {[%clk 0:00:39.3]} 84. Qd6+ {[%clk 0:00:19.3]} 84... Kg5
{[%clk 0:00:36.5]} 1/2-1/2

[Event "*** Titled Tuesday 3|2 Blitz (Late)"]
[Site "Chess.com"]
[Date "2016.11.01"]
[Round "5"]
[White "Aygehovit1992"]
[Black "RobertoJBM"]
[Result "1-0"]
[WhiteElo "2447"]
[BlackElo "2518"]
[TimeControl "180+2"]
[EndTime "18:07:52 PDT"]
[Termination "Aygehovit1992 won on time"]

1. e4 {[%clk 0:03:01.9]} 1... c6 {[%clk 0:03:00.2]} 2. d4 {[%clk 0:03:00.6]}
2... d5 {[%clk 0:03:02.1]} 3. e5 {[%clk 0:03:02]} 3... Bf5 {[%clk 0:03:02.9]} 4.
Nf3 {[%clk 0:03:03.4]} 4... e6 {[%clk 0:03:03.9]} 5. Be2 {[%clk 0:03:05]} 5...
Nd7 {[%clk 0:03:03.6]} 6. O-O {[%clk 0:03:05.9]} 6... h6 {[%clk 0:03:01.3]} 7.
Nbd2 {[%clk 0:03:06.6]} 7... Ne7 {[%clk 0:03:02.6]} 8. a4 {[%clk 0:03:06.8]}
8... Bh7 {[%clk 0:03:00.5]} 9. a5 {[%clk 0:03:06.1]} 9... Ng6 {[%clk 0:03:01.5]}
10. Nb3 {[%clk 0:03:06.4]} 10... Be7 {[%clk 0:03:02.7]} 11. c4 {[%clk
0:03:02.5]} 11... dxc4 {[%clk 0:03:03.3]} 12. Bxc4 {[%clk 0:03:04.4]} 12... O-O
{[%clk 0:03:04.3]} 13. Bd3 {[%clk 0:03:05.1]} 13... Rc8 {[%clk 0:03:04]} 14. Be3
{[%clk 0:03:05.6]} 14... Qc7 {[%clk 0:03:01.5]} 15. Rc1 {[%clk 0:03:04.8]} 15...
Rfd8 {[%clk 0:03:01.7]} 16. Qc2 {[%clk 0:03:00.1]} 16... Qb8 {[%clk 0:03:01.3]}
17. h4 {[%clk 0:02:56.2]} 17... Ngf8 {[%clk 0:03:01.9]} 18. Bxh7+ {[%clk
0:02:55.8]} 18... Nxh7 {[%clk 0:03:03.8]} 19. Qe4 {[%clk 0:02:56.3]} 19... c5
{[%clk 0:02:52.9]} 20. Nxc5 {[%clk 0:02:47.7]} 20... Nxc5 {[%clk 0:02:53.1]} 21.
dxc5 {[%clk 0:02:48.7]} 21... Rd5 {[%clk 0:02:48.3]} 22. b4 {[%clk 0:02:48.6]}
22... Rcd8 {[%clk 0:02:48.9]} 23. b5 {[%clk 0:02:44.3]} 23... Qc7 {[%clk
0:02:47.1]} 24. c6 {[%clk 0:02:43.3]} 24... bxc6 {[%clk 0:02:46.6]} 25. b6
{[%clk 0:02:44.6]} 25... Qb7 {[%clk 0:02:43.4]} 26. bxa7 {[%clk 0:02:45.3]}
26... c5 {[%clk 0:02:44.7]} 27. Bxc5 {[%clk 0:02:40.3]} 27... Bxc5 {[%clk
0:02:45.9]} 28. Rxc5 {[%clk 0:02:40.4]} 28... Qxa7 {[%clk 0:02:47.1]} 29. Rxd5
{[%clk 0:02:32.4]} 29... Rxd5 {[%clk 0:02:49]} 30. Rb1 {[%clk 0:01:43.5]} 30...
Qxa5 {[%clk 0:02:48.1]} 31. Kh2 {[%clk 0:01:41.2]} 31... Nf8 {[%clk 0:02:43.5]}
32. h5 {[%clk 0:00:11.4]} 32... Qc7 {[%clk 0:02:42.6]} 33. g3 {[%clk 0:00:10.1]}
33... Qe7 {[%clk 0:02:36.2]} 34. Kg2 {[%clk 0:00:10.8]} 34... Rd8 {[%clk
0:02:35.5]} 35. Rb7 {[%clk 0:00:11.6]} 35... Rd7 {[%clk 0:02:36.8]} 36. Rb8
{[%clk 0:00:12.8]} 36... Rd8 {[%clk 0:02:38.1]} 37. Rb7 {[%clk 0:00:13.9]} 37...
Qe8 {[%clk 0:02:37.2]} 38. Rb5 {[%clk 0:00:10.8]} 38... Nh7 {[%clk 0:02:33.4]}
39. Rb7 {[%clk 0:00:10.5]} 39... Rb8 {[%clk 0:02:32.3]} 40. Ra7 {[%clk
0:00:10.9]} 40... Rd8 {[%clk 0:02:27.8]} 41. Nh2 {[%clk 0:00:11.1]} 41... Ng5
{[%clk 0:02:28]} 42. Qb7 {[%clk 0:00:11.1]} 42... Rb8 {[%clk 0:02:25.7]} 43. Qc7
{[%clk 0:00:10.3]} 43... Rc8 {[%clk 0:02:26.9]} 44. Qb7 {[%clk 0:00:11.3]} 44...
Rb8 {[%clk 0:02:08.2]} 45. Qd7 {[%clk 0:00:11.7]} 45... Qxd7 {[%clk 0:02:08.8]}
46. Rxd7 {[%clk 0:00:13.5]} 46... Kf8 {[%clk 0:02:07]} 47. Ng4 {[%clk
0:00:14.2]} 47... Ke8 {[%clk 0:02:08.1]} 48. Ra7 {[%clk 0:00:15.3]} 48... Ne4
{[%clk 0:02:08.3]} 49. Kf3 {[%clk 0:00:11.9]} 49... Nc3 {[%clk 0:02:02.8]} 50.
Ne3 {[%clk 0:00:11.4]} 50... Nb5 {[%clk 0:02:03.4]} 51. Ra5 {[%clk 0:00:11.9]}
51... Nd4+ {[%clk 0:02:03.7]} 52. Ke4 {[%clk 0:00:13.2]} 52... Nc6 {[%clk
0:02:05.6]} 53. Rc5 {[%clk 0:00:13.9]} 53... Rb4+ {[%clk 0:02:05.3]} 54. Kd3
{[%clk 0:00:14]} 54... Ne7 {[%clk 0:02:01.4]} 55. Nc4 {[%clk 0:00:12.1]} 55...
Rb8 {[%clk 0:01:56.7]} 56. Rc7 {[%clk 0:00:11]} 56... Kf8 {[%clk 0:01:47.9]} 57.
Nd6 {[%clk 0:00:11.6]} 57... Ra8 {[%clk 0:01:44.2]} 58. Rd7 {[%clk 0:00:08.9]}
58... Rb8 {[%clk 0:01:37.2]} 59. f4 {[%clk 0:00:09]} 59... Ra8 {[%clk
0:01:32.8]} 60. g4 {[%clk 0:00:10.3]} 60... Ra3+ {[%clk 0:01:32.4]} 61. Kc4
{[%clk 0:00:09.9]} 61... Ra4+ {[%clk 0:01:30.2]} 62. Kb5 {[%clk 0:00:10.7]}
62... Ra8 {[%clk 0:01:31.1]} 63. f5 {[%clk 0:00:11.4]} 63... Rb8+ {[%clk
0:01:27.6]} 64. Kc5 {[%clk 0:00:12.1]} 64... Ra8 {[%clk 0:01:22.8]} 65. f6
{[%clk 0:00:11.4]} 65... gxf6 {[%clk 0:01:13.9]} 66. exf6 {[%clk 0:00:12]} 66...
Nd5 {[%clk 0:01:07.1]} 67. Rxf7+ {[%clk 0:00:12.2]} 67... Kg8 {[%clk 0:01:08.8]}
68. Rg7+ {[%clk 0:00:13.4]} 68... Kf8 {[%clk 0:01:09.1]} 69. Rh7 {[%clk
0:00:07.8]} 69... Ra5+ {[%clk 0:01:07.9]} 70. Kd4 {[%clk 0:00:05.9]} 70... Kg8
{[%clk 0:00:59.9]} 71. f7+ {[%clk 0:00:07]} 71... Kxh7 {[%clk 0:01:00.2]} 72.
f8=Q {[%clk 0:00:08.4]} 72... Ra7 {[%clk 0:00:57.9]} 73. Nf7 {[%clk 0:00:07.7]}
1-0

[Event "*** Titled Tuesday 3|2 Blitz (Late)"]
[Site "Chess.com"]
[Date "2016.11.01"]
[Round "5"]
[White "Alexander_Moskalenko"]
[Black "hardingstoptry"]
[Result "1-0"]
[WhiteElo "2666"]
[BlackElo "2585"]
[TimeControl "180+2"]
[EndTime "18:11:00 PDT"]
[Termination "Alexander_Moskalenko won by resignation"]

1. d4 {[%clk 0:03:02]} 1... d5 {[%clk 0:03:00.9]} 2. Bf4 {[%clk 0:03:02.8]} 2...
c6 {[%clk 0:03:02.8]} 3. Nf3 {[%clk 0:03:02.5]} 3... Nf6 {[%clk 0:03:04.2]} 4.
e3 {[%clk 0:03:03.5]} 4... e6 {[%clk 0:03:04.9]} 5. Nbd2 {[%clk 0:03:03.3]} 5...
Nh5 {[%clk 0:03:03.6]} 6. Be5 {[%clk 0:03:03.8]} 6... Nd7 {[%clk 0:03:02.6]} 7.
Bd3 {[%clk 0:02:42.3]} 7... c5 {[%clk 0:02:59.8]} 8. c3 {[%clk 0:02:41.1]} 8...
Qb6 {[%clk 0:02:56.5]} 9. Rb1 {[%clk 0:02:34.6]} 9... Be7 {[%clk 0:02:49.8]} 10.
h3 {[%clk 0:02:28.2]} 10... O-O {[%clk 0:02:46.1]} 11. Bh2 {[%clk 0:02:23.3]}
11... Nhf6 {[%clk 0:02:43.8]} 12. O-O {[%clk 0:02:24.8]} 12... c4 {[%clk
0:02:43.1]} 13. Bc2 {[%clk 0:02:23.7]} 13... Bd6 {[%clk 0:02:31.4]} 14. Bxd6
{[%clk 0:02:15.9]} 14... Qxd6 {[%clk 0:02:33.3]} 15. Re1 {[%clk 0:02:17.1]}
15... b5 {[%clk 0:02:26.9]} 16. e4 {[%clk 0:02:17.6]} 16... dxe4 {[%clk
0:02:25.9]} 17. Nxe4 {[%clk 0:02:16.3]} 17... Nxe4 {[%clk 0:02:27]} 18. Bxe4
{[%clk 0:02:18.2]} 18... Rb8 {[%clk 0:02:26]} 19. a3 {[%clk 0:02:15]} 19... Bb7
{[%clk 0:02:23.8]} 20. Ne5 {[%clk 0:02:09.9]} 20... Bxe4 {[%clk 0:02:18]} 21.
Rxe4 {[%clk 0:02:11.8]} 21... Nxe5 {[%clk 0:02:11.5]} 22. Rxe5 {[%clk
0:02:13.7]} 22... Rfd8 {[%clk 0:02:12]} 23. Qf3 {[%clk 0:02:11.2]} 23... Qe7
{[%clk 0:02:06.9]} 24. Rbe1 {[%clk 0:02:12.1]} 24... Qf8 {[%clk 0:02:03.8]} 25.
h4 {[%clk 0:02:10.2]} 25... a6 {[%clk 0:02:01]} 26. h5 {[%clk 0:02:11.2]} 26...
g6 {[%clk 0:01:59.9]} 27. g3 {[%clk 0:02:09]} 27... Qe7 {[%clk 0:01:59.3]} 28.
d5 {[%clk 0:02:08.4]} 28... Rb6 {[%clk 0:01:58.8]} 29. hxg6 {[%clk 0:02:05.6]}
29... hxg6 {[%clk 0:01:55.4]} 30. Kg2 {[%clk 0:02:03.6]} 30... a5 {[%clk
0:01:53.2]} 31. dxe6 {[%clk 0:01:54]} 31... fxe6 {[%clk 0:01:47.8]} 32. Qg4
{[%clk 0:01:55.1]} 32... Qf7 {[%clk 0:01:47.2]} 33. R1e4 {[%clk 0:01:42.3]}
33... Kg7 {[%clk 0:01:44.3]} 34. Rf4 {[%clk 0:01:43]} 34... Qb7+ {[%clk
0:01:40.1]} 35. Rfe4 {[%clk 0:01:44.4]} 35... Qf7 {[%clk 0:01:38.4]} 36. Rxe6
{[%clk 0:01:38.1]} 36... Rxe6 {[%clk 0:01:36.8]} 37. Rxe6 {[%clk 0:01:40]} 37...
Rd2 {[%clk 0:01:35.6]} 38. Re2 {[%clk 0:01:41.4]} 38... Rd3 {[%clk 0:01:34.9]}
39. Qe4 {[%clk 0:01:35.2]} 39... a4 {[%clk 0:01:28.4]} 40. Qe5+ {[%clk
0:01:32.1]} 40... Qf6 {[%clk 0:01:25.9]} 41. Qc7+ {[%clk 0:01:23.8]} 41... Kh6
{[%clk 0:01:24.2]} 42. Qb7 {[%clk 0:01:25.2]} 42... Qf5 {[%clk 0:01:22.8]} 43.
Re7 {[%clk 0:01:19.3]} 43... Qd5+ {[%clk 0:01:17.8]} 44. Qxd5 {[%clk 0:01:20.4]}
44... Rxd5 {[%clk 0:01:19.7]} 45. Rb7 {[%clk 0:01:22.3]} 45... Kg5 {[%clk
0:01:16.8]} 46. Kh3 {[%clk 0:01:21.5]} 46... Kf5 {[%clk 0:01:17.1]} 47. f3
{[%clk 0:01:05]} 47... Kg5 {[%clk 0:01:17.8]} 48. Rb8 {[%clk 0:00:58.3]} 48...
Kf5 {[%clk 0:01:14.7]} 49. Rb7 {[%clk 0:00:42.7]} 49... Kg5 {[%clk 0:01:14]} 50.
Rb6 {[%clk 0:00:44.2]} 50... Kf5 {[%clk 0:01:08.8]} 51. g4+ {[%clk 0:00:45.5]}
51... Kf4 {[%clk 0:01:07.9]} 52. Rxg6 {[%clk 0:00:41.5]} 52... Kxf3 {[%clk
0:01:06.8]} 53. Rf6+ {[%clk 0:00:42.7]} 53... Ke4 {[%clk 0:01:06.7]} 54. Rf2
{[%clk 0:00:40.7]} 54... Rd3+ {[%clk 0:01:01.8]} 55. Kh4 {[%clk 0:00:41.5]}
55... Ke3 {[%clk 0:00:58.8]} 56. Rf5 {[%clk 0:00:41.3]} 56... b4 {[%clk
0:00:57.7]} 57. cxb4 {[%clk 0:00:37]} 57... Rd2 {[%clk 0:00:55.8]} 58. Rc5
{[%clk 0:00:36.6]} 58... Kd4 {[%clk 0:00:54.9]} 59. g5 {[%clk 0:00:29.6]} 59...
Rxb2 {[%clk 0:00:53.1]} 60. g6 {[%clk 0:00:30.5]} 60... Rg2 {[%clk 0:00:51.5]}
61. Kh5 {[%clk 0:00:30.6]} 61... c3 {[%clk 0:00:49.5]} 62. Kh6 {[%clk
0:00:30.8]} 62... Rh2+ {[%clk 0:00:48.2]} 63. Kg7 {[%clk 0:00:31]} 63... c2
{[%clk 0:00:49.1]} 64. Rc6 {[%clk 0:00:22.2]} 64... Re2 {[%clk 0:00:44]} 65. b5
{[%clk 0:00:18.5]} 65... Kd3 {[%clk 0:00:43.4]} 66. b6 {[%clk 0:00:19.3]} 66...
Re6 {[%clk 0:00:42.1]} 67. Rxe6 {[%clk 0:00:04.6]} 67... c1=Q {[%clk 0:00:42.9]}
68. Kf7 {[%clk 0:00:05.1]} 68... Qf4+ {[%clk 0:00:40.7]} 69. Rf6 {[%clk
0:00:04]} 69... Qb8 {[%clk 0:00:40]} 70. g7 {[%clk 0:00:04.9]} 70... Qb7+ {[%clk
0:00:39.5]} 71. Kg6 {[%clk 0:00:06]} 71... Qe4+ {[%clk 0:00:37.1]} 72. Kf7
{[%clk 0:00:06.4]} 72... Qd5+ {[%clk 0:00:35.1]} 73. Kf8 {[%clk 0:00:05.9]}
73... Qd8+ {[%clk 0:00:34.3]} 74. Kf7 {[%clk 0:00:07.5]} 74... Qd5+ {[%clk
0:00:33.9]} 75. Kg6 {[%clk 0:00:07.4]} 75... Qe4+ {[%clk 0:00:33.4]} 76. Rf5
{[%clk 0:00:07.7]} 76... Qe6+ {[%clk 0:00:32.9]} 77. Rf6 {[%clk 0:00:09]} 77...
Qe4+ {[%clk 0:00:28.9]} 78. Kh6 {[%clk 0:00:10.6]} 78... Qh4+ {[%clk 0:00:27.2]}
79. Kg6 {[%clk 0:00:12.1]} 79... Qe4+ {[%clk 0:00:26]} 80. Rf5 {[%clk 0:00:14]}
80... Qe6+ {[%clk 0:00:24.7]} 81. Kg5 {[%clk 0:00:13.9]} 81... Qxb6 {[%clk
0:00:23.6]} 82. Rf8 {[%clk 0:00:12.4]} 82... Qb5+ {[%clk 0:00:22.9]} 83. Kg6
{[%clk 0:00:12.3]} 83... Qc6+ {[%clk 0:00:23.1]} 84. Rf6 {[%clk 0:00:12.1]}
84... Qe4+ {[%clk 0:00:22.5]} 85. Kf7 {[%clk 0:00:12.8]} 85... Qd5+ {[%clk
0:00:21.8]} 86. Re6 {[%clk 0:00:13.2]} 86... Qf3+ {[%clk 0:00:20.1]} 87. Ke7
{[%clk 0:00:13]} 87... Qg4 {[%clk 0:00:19.7]} 88. Rd6+ {[%clk 0:00:10.8]} 88...
Kc4 {[%clk 0:00:19.1]} 89. Kf7 {[%clk 0:00:11.9]} 89... Qf4+ {[%clk 0:00:18.1]}
90. Rf6 {[%clk 0:00:13]} 90... Qc7+ {[%clk 0:00:17.1]} 91. Kg6 {[%clk
0:00:12.5]} 91... Qb8 {[%clk 0:00:14.6]} 92. Kh7 {[%clk 0:00:11.2]} 92... Qc7
{[%clk 0:00:13.4]} 93. Rh6 {[%clk 0:00:08.3]} 93... Kd5 {[%clk 0:00:12.5]} 94.
Kh8 {[%clk 0:00:09.3]} 94... Qc3 {[%clk 0:00:11.9]} 95. Kh7 {[%clk 0:00:08.4]}
95... Qd3+ {[%clk 0:00:11.5]} 96. Rg6 {[%clk 0:00:09.7]} 96... Qh3+ {[%clk
0:00:10.5]} 97. Rh6 {[%clk 0:00:11.2]} 97... Qd3+ {[%clk 0:00:09.3]} 98. Kh8
{[%clk 0:00:12.4]} 98... Qd4 {[%clk 0:00:08.1]} 99. Ra6 {[%clk 0:00:07.1]} 99...
Qh4+ {[%clk 0:00:06.9]} 100. Kg8 {[%clk 0:00:07.5]} 100... Ke5 {[%clk
0:00:04.4]} 101. Ra5+ {[%clk 0:00:06.4]} 101... Kd6 {[%clk 0:00:04.6]} 102. Rf5
{[%clk 0:00:04.6]} 102... Ke7 {[%clk 0:00:04.9]} 103. Rf7+ {[%clk 0:00:05.6]}
103... Ke6 {[%clk 0:00:05.2]} 104. Rf8 {[%clk 0:00:06.4]} 104... Qc4 {[%clk
0:00:04.8]} 105. Kh7 {[%clk 0:00:06.8]} 105... Qh4+ {[%clk 0:00:05.5]} 106. Kg6
{[%clk 0:00:05.9]} 106... Qg4+ {[%clk 0:00:05.8]} 107. Kh6 {[%clk 0:00:07.5]}
107... Qh4+ {[%clk 0:00:06.7]} 108. Kg6 {[%clk 0:00:09]} 108... Qg4+ {[%clk
0:00:07.5]} 109. Kh7 {[%clk 0:00:10.5]} 109... Qh5+ {[%clk 0:00:07.2]} 110. Kg8
{[%clk 0:00:11.8]} 110... Qg6 {[%clk 0:00:08.1]} 111. Ra8 {[%clk 0:00:10]}
111... Kd5 {[%clk 0:00:08.6]} 112. Rf8 {[%clk 0:00:10.2]} 112... Qe6+ {[%clk
0:00:08.8]} 113. Kh7 {[%clk 0:00:10.6]} 113... Qf5+ {[%clk 0:00:09.5]} 114.
Rxf5+ {[%clk 0:00:11.1]} 1-0